fUSD/lending_fUSD_20250911
["ID","MTS","AMOUNT","RATE_DAILY","PERIOD"]
[384896207,1757621447124,-400.0,0.00027397,7]
[384896208,1757621447133,-482.81,0.00027397,7]
[384896209,1757621447142,-976.94,0.00027397,7]
[384896210,1757621447151,-400.0,0.00027397,7]
[384896211,1757621447160,-400.0,0.00027397,7]
[384896212,1757621447169,-151.0,0.00027397,7]
[384896213,1757621447179,-151.0,0.00027397,7]
[384896214,1757621447187,-400.0,0.00027397,7]
[384896215,1757621447197,-400.0,0.00027397,7]
[384896216,1757621447206,-1240.63,0.00027397,7]
[384896217,1757621447215,-151.0,0.00027397,7]
[384896218,1757621447224,-151.0,0.00027397,7]
[384896219,1757621447234,-824.03,0.00027397,7]
[384896220,1757621447244,-400.0,0.00027397,7]
[384896221,1757621447254,-770.74,0.00027397,7]
[384896222,1757621447264,-1596.79,0.00027397,7]
[384896223,1757621447276,-400.0,0.00027397,7]
[384896224,1757621447286,-400.0,0.00027397,7]
[384896225,1757621447296,-280.65417101,0.00027397,7]
[384896226,1757621447386,-400.0,0.00027397,7]
[384896227,1757621447395,-400.0,0.00027397,7]
[384896228,1757621447405,-621.28,0.00027397,7]
[384896229,1757621447414,-810.34,0.00027397,7]
[384896230,1757621447423,-500.0,0.00027397,7]
[384896231,1757621447432,-500.0,0.00027397,7]
[384896232,1757621447441,-500.0,0.00027397,7]
[384896233,1757621447450,-500.0,0.00027397,7]
[384896234,1757621447459,-400.0,0.00027397,7]
[384896235,1757621447470,-1635.09,0.00027397,7]
[384896236,1757621447480,-400.0,0.00027397,7]
[384896237,1757621447491,-400.0,0.00027397,7]
[384896238,1757621447501,-400.0,0.00027397,7]
[384896239,1757621447510,-402.54738601,0.00027397,7]
[384896240,1757621447520,-2557.45,0.00027397,7]
[384896241,1757621447530,-736.79,0.00027397,7]
[384896242,1757621447540,-486.34,0.00027397,7]
[384896243,1757621447550,-2419.93,0.00027397,7]
[384896244,1757621447561,-3355.27,0.00027397,7]
[384896245,1757621447571,-400.0,0.00027397,7]
[384896246,1757621447580,-400.0,0.00027397,7]
[384896247,1757621447589,-2061.01,0.00027397,7]
[384896248,1757621447598,-400.0,0.00027397,7]
[384896249,1757621447607,-400.0,0.00027397,7]
[384896250,1757621447616,-1467.99,0.00027397,7]
[384896251,1757621447625,-1325.47,0.00027397,7]
[384896252,1757621447634,-507.74,0.00027397,7]
[384896253,1757621447644,-400.0,0.00027397,7]
[384896254,1757621447653,-413.99,0.00027397,7]
[384896255,1757621447662,-2116.31,0.00027397,7]
[384896256,1757621447671,-400.0,0.00027397,7]
[384896257,1757621447680,-400.0,0.00027397,7]
[384896258,1757621447689,-492.5,0.00027397,7]
[384896259,1757621447698,-400.0,0.00027397,7]
[384896260,1757621447708,-1802.14,0.00027397,7]
[384896261,1757621447717,-498.27,0.00027397,7]
[384896262,1757621447726,-1804.82,0.00027397,7]
[384896263,1757621447735,-400.0,0.00027397,7]
[384896264,1757621447745,-1100.86,0.00027397,7]
[384896265,1757621447754,-215.05551592,0.00027397,7]
[384896266,1757621447763,-1908.57,0.00027397,7]
[384896267,1757621447772,-1390.25,0.00027397,7]
[384896268,1757621447781,-400.0,0.00027397,7]
[384896269,1757621447791,-400.0,0.00027397,7]
[384896270,1757621447800,-1408.02,0.00027397,7]
[384896271,1757621447809,-1796.56,0.00027397,7]
[384896272,1757621447818,-486.41,0.00027397,7]
[384896273,1757621447827,-400.0,0.00027397,7]
[384896274,1757621447837,-400.0,0.00027397,7]
[384896275,1757621447846,-400.0,0.00027397,7]
[384896276,1757621447855,-415.35,0.00027397,7]
[384896277,1757621447864,-1434.21,0.00027397,7]
[384896278,1757621447874,-400.0,0.00027397,7]
[384896279,1757621447882,-2344.99,0.00027397,7]
[384896280,1757621447892,-400.0,0.00027397,7]
[384896281,1757621447901,-500.0,0.00027397,7]
[384896282,1757621447911,-1779.7,0.00027397,7]
[384896283,1757621447920,-500.0,0.00027397,7]
[384896284,1757621447929,-400.0,0.00027397,7]
[384896285,1757621447939,-500.0,0.00027397,7]
[384896286,1757621447948,-1580.01,0.00027397,7]
[384896287,1757621447957,-378.21,0.00027397,7]
[384896288,1757621447967,-1158.81,0.00027397,7]
[384896289,1757621447976,-878.43,0.00027397,7]
[384896290,1757621447985,-411.3,0.00027397,7]
[384896291,1757621447995,-500.0,0.00027397,2]
[384896292,1757621448004,-400.0,0.00027397,7]
[384896293,1757621448014,-465.83459171,0.00027397,7]
[384896294,1757621448023,-400.0,0.00027397,7]
[384896295,1757621448032,-724.59,0.00027397,7]
[384896296,1757621448041,-400.0,0.00027397,7]
[384896297,1757621448050,-2075.19,0.00027397,7]
[384896298,1757621448059,-400.0,0.00027397,7]
[384896299,1757621448068,-2547.33,0.00027397,7]
[384896300,1757621448077,-1899.56,0.00027397,7]
[384896301,1757621448086,-451.97,0.00027397,7]
[384896302,1757621448095,-400.0,0.00027397,7]
[384896303,1757621448104,-400.0,0.00027397,7]
[384896304,1757621448113,-400.0,0.00027397,7]
[384896305,1757621448121,-400.0,0.00027397,7]
[384896306,1757621448131,-1503.12,0.00027397,7]
[384896307,1757621448139,-981.54,0.00027397,7]
[384896308,1757621448148,-151.0,0.00027397,7]
[384896309,1757621448157,-151.0,0.00027397,7]
[384896310,1757621448166,-400.0,0.00027397,7]
[384896311,1757621448174,-400.0,0.00027397,7]
[384896312,1757621448183,-151.0,0.00027397,7]
[384896313,1757621448192,-154.377962,0.00027397,7]
[384896314,1757621448201,-400.0,0.00027397,7]
[384896315,1757621448210,-413.82917403,0.00027397,7]
[384896316,1757621448219,-424.53,0.00027397,7]
[384896317,1757621448228,-400.0,0.00027397,7]
[384896318,1757621448237,-400.0,0.00027397,7]
[384896319,1757621448246,-400.0,0.00027397,7]
[384896320,1757621448255,-400.0,0.00027397,7]
[384896321,1757621448266,-460.7733853,0.00027397,7]
[384896322,1757621448276,-2158.71,0.00027397,7]
[384896323,1757621448285,-752.64,0.00027397,7]
[384896324,1757621448294,-2192.12,0.00027397,7]
[384896325,1757621448303,-400.0,0.00027397,7]
[384896326,1757621448311,-426.53,0.00027397,7]
[384896327,1757621448321,-413.39616503,0.00027397,7]
[384896328,1757621448330,-404.15923226,0.00027397,7]
[384896329,1757621448339,-400.0,0.00027397,7]
[384896330,1757621448347,-400.0,0.00027397,7]
[384896331,1757621448356,-400.0,0.00027397,7]
[384896332,1757621448365,-400.0,0.00027397,7]
[384896333,1757621448375,-1194.11,0.00027397,7]
[384896334,1757621448384,-2090.3,0.00027397,7]
[384896335,1757621448393,-400.0,0.00027397,7]
[384896336,1757621448402,-400.0,0.00027397,7]
[384896337,1757621448411,-400.0,0.00027397,7]
[384896338,1757621448421,-400.0,0.00027397,7]
[384896339,1757621448430,-400.0,0.00027397,7]
[384896340,1757621448439,-400.0,0.00027397,7]
[384896341,1757621448449,-400.0,0.00027397,7]
[384896342,1757621448459,-151.0,0.00027397,7]
[384896343,1757621448468,-400.0,0.00027397,7]
[384896344,1757621448477,-400.0,0.00027397,7]
[384896345,1757621448487,-1687.96,0.00027397,7]
[384896346,1757621448497,-151.0,0.00027397,7]
[384896347,1757621448506,-151.0,0.00027397,7]
[384896348,1757621448515,-157.68962,0.00027397,7]
[384896349,1757621448525,-838.34,0.00027397,7]
[384896350,1757621448534,-151.0,0.00027397,7]
[384896351,1757621448543,-400.0,0.00027397,7]
[384896352,1757621448552,-300.0,0.00027397,7]
[384896353,1757621448561,-400.0,0.00027397,7]
[384896354,1757621448570,-2216.29,0.00027397,7]
[384896355,1757621448580,-411.05883515,0.00027397,7]
[384896356,1757621448590,-152.273788,0.00027397,7]
[384896357,1757621448599,-400.0,0.00027397,7]
[384896358,1757621448608,-234.63,0.00027397,7]
[384896359,1757621448617,-1115.29,0.00027397,7]
[384896360,1757621448627,-400.0,0.00027397,7]
[384896361,1757621448636,-161.458048,0.00027397,7]
[384896362,1757621448646,-400.0,0.00027397,7]
[384896363,1757621448655,-481.65,0.00027397,7]
[384896364,1757621448664,-400.0,0.00027397,7]
[384896365,1757621448673,-528.16,0.00027397,7]
[384896366,1757621448682,-1425.44,0.00027397,7]
[384896367,1757621448692,-572.79,0.00027397,7]
[384896368,1757621448702,-300.0,0.00027397,7]
[384896369,1757621448711,-400.0,0.00027397,7]
[384896370,1757621448722,-1556.31,0.00027397,7]
[384896371,1757621448732,-550.68,0.00027397,7]
[384896372,1757621448741,-400.0,0.00027397,7]
[384896373,1757621448751,-1270.61,0.00027397,7]
[384896374,1757621448760,-2465.92,0.00027397,7]
[384896375,1757621448769,-779.77,0.00027397,7]
[384896376,1757621448778,-151.0,0.00027397,7]
[384896377,1757621448788,-1341.01,0.00027397,7]
[384896378,1757621448797,-1629.62,0.00027397,7]
[384896379,1757621448806,-571.03,0.00027397,7]
[384896380,1757621448816,-2843.41,0.00027397,7]
[384896381,1757621448825,-1727.73,0.00027397,7]
[384896382,1757621448834,-1634.05,0.00027397,7]
[384896383,1757621448844,-151.0,0.00027397,7]
[384896384,1757621448854,-152.394625,0.00027397,7]
[384896385,1757621448863,-157.505055,0.00027397,7]
[384896386,1757621448872,-405.55,0.00027397,7]
[384896387,1757621448881,-151.0,0.00027397,7]
[384896388,1757621448891,-151.0,0.00027397,7]
[384896389,1757621448901,-254.27092338,0.00027397,7]
[384896390,1757621448910,-1000.0,0.00027397,7]
[384896391,1757621448919,-2224.91,0.00027397,7]
[384896392,1757621448929,-400.0,0.00027397,7]
[384896393,1757621448938,-152.589335,0.00027397,7]
[384896394,1757621448947,-587.81,0.00027397,7]
[384896395,1757621448956,-400.0,0.00027397,7]
[384896396,1757621448965,-1577.55,0.00027397,7]
[384896397,1757621448975,-400.0,0.00027397,7]
[384896398,1757621448984,-400.0,0.00027397,7]
[384896399,1757621448993,-1686.4,0.00027397,7]
[384896400,1757621449002,-400.0,0.00027397,7]
[384896401,1757621449012,-501.05,0.00027397,7]
[384896402,1757621449022,-400.0,0.00027397,7]
[384896403,1757621449031,-400.0,0.00027397,7]
[384896404,1757621449041,-400.0,0.00027397,7]
[384896405,1757621449050,-1150.74,0.00027397,7]
[384896406,1757621449059,-502.57371206,0.00027397,7]
[384896407,1757621449069,-151.0,0.00027397,7]
[384896408,1757621449078,-151.0,0.00027397,7]
[384896409,1757621449088,-400.0,0.00027397,7]
[384896410,1757621449097,-151.0,0.00027397,7]
[384896411,1757621449106,-151.0,0.00027397,7]
[384896412,1757621449116,-151.0,0.00027397,7]
[384896413,1757621449125,-400.0,0.00027397,7]
[384896414,1757621449134,-151.0,0.00027397,7]
[384896415,1757621449144,-1497.5,0.00027397,7]
[384896416,1757621449153,-400.0,0.00027397,7]
[384896417,1757621449163,-1519.91,0.00027397,7]
[384896418,1757621449172,-402.0,0.00027397,7]
[384896419,1757621449182,-5404.23,0.00027397,7]
[384896420,1757621449191,-409.10736618,0.00027397,7]
[384896421,1757621449201,-594.61,0.00027397,7]
[384896422,1757621449211,-998.16,0.00027397,7]
[384896423,1757621449220,-287.248856,0.00027397,7]
[384896424,1757621449230,-400.0,0.00027397,7]
[384896425,1757621449240,-400.0,0.00027397,7]
[384896426,1757621449249,-400.0,0.00027397,7]
[384896427,1757621449259,-1933.69,0.00027397,7]
[384896428,1757621449273,-3250.06,0.00027397,7]
[384896429,1757621449282,-352.625749,0.00027397,7]
[384896430,1757621449292,-352.625749,0.00027397,7]
[384896431,1757621449301,-400.0,0.00027397,7]
[384896432,1757621449312,-151.0,0.00027397,7]
[384896433,1757621449321,-151.0,0.00027397,7]
[384896434,1757621449330,-273.34879697,0.00027397,7]
[384896435,1757621449340,-483.02,0.00027397,7]
[384896436,1757621449350,-352.625749,0.00027397,7]
[384896437,1757621449359,-1399.98,0.00027397,7]
[384896438,1757621449369,-352.625749,0.00027397,7]
[384896439,1757621449378,-1641.63,0.00027397,7]
[384896440,1757621449388,-400.0,0.00027397,7]
[384896441,1757621449398,-404.29760213,0.00027397,7]
[384896442,1757621449407,-352.625749,0.00027397,7]
[384896443,1757621449417,-352.625749,0.00027397,7]
[384896444,1757621449427,-352.625749,0.00027397,7]
[384896445,1757621449436,-400.0,0.00027397,7]
[384896446,1757621449446,-444.77,0.00027397,7]
[384896447,1757621449456,-352.625749,0.00027397,7]
[384896448,1757621449466,-400.0,0.00027397,7]
[384896449,1757621449475,-400.0,0.00027397,7]
[384896450,1757621449484,-500.0,0.00027397,2]
[384896451,1757621449494,-500.0,0.00027397,2]
[384896452,1757621449504,-500.0,0.00027397,2]
[384896453,1757621449513,-536.94493999,0.00027397,2]
[384896454,1757621449523,-1079.77,0.00027397,7]
[384896455,1757621449535,-688.43,0.00027397,7]
[384896456,1757621449545,-1587.85,0.00027397,7]
[384896457,1757621449555,-400.0,0.00027397,7]
[384896458,1757621449566,-400.0,0.00027397,7]
[384896459,1757621449577,-400.0,0.00027397,7]
[384896460,1757621449588,-400.0,0.00027397,7]
[384896461,1757621449599,-151.0,0.00027397,7]
[384896462,1757621449610,-4171.79,0.00027397,7]
[384896463,1757621449620,-400.0,0.00027397,7]
[384896464,1757621449631,-218.939057,0.00027397,7]
[384896465,1757621449641,-151.0,0.00027397,7]
[384896466,1757621449652,-151.0,0.00027397,7]
[384896467,1757621449661,-2183.98,0.00027397,7]
[384896468,1757621449670,-400.0,0.00027397,7]
[384896469,1757621449680,-941.97,0.00027397,7]
[384896470,1757621449692,-1343.37,0.00027397,7]
[384896471,1757621449702,-400.0,0.00027397,7]
[384896472,1757621449714,-1806.8,0.00027397,7]
[384896473,1757621449725,-2221.56,0.00027397,7]
[384896474,1757621449734,-400.0,0.00027397,7]
[384896475,1757621449744,-2308.67,0.00027397,7]
[384896476,1757621449754,-2239.53,0.00027397,7]
[384896477,1757621449763,-400.0,0.00027397,7]
[384896478,1757621449773,-481.14,0.00027397,7]
[384896479,1757621449782,-400.0,0.00027397,7]
[384896480,1757621449792,-458.74,0.00027397,7]
[384896481,1757621449805,-243.10868329,0.00027397,7]
[384896482,1757621449815,-400.0,0.00027397,7]
[384896483,1757621449825,-400.0,0.00027397,7]
[384896484,1757621449835,-400.0,0.00027397,7]
[384896485,1757621449845,-400.0,0.00027397,7]
[384896486,1757621449854,-400.0,0.00027397,7]
[384896487,1757621449864,-579.68,0.00027397,7]
[384896488,1757621449874,-500.0,0.00027397,7]
[384896489,1757621449883,-151.0,0.00027397,7]
[384896490,1757621449893,-2033.08,0.00027397,7]
[384896491,1757621449903,-151.0,0.00027397,7]
[384896492,1757621449912,-1031.26,0.00027397,7]
[384896493,1757621449921,-2486.09,0.00027397,7]
[384896494,1757621449931,-1219.4,0.00027397,7]
[384896495,1757621449940,-924.06,0.00027397,2]
[384896496,1757621449950,-2413.14,0.00027397,7]
[384896497,1757621449959,-924.06,0.00027397,2]
[384896498,1757621449969,-400.0,0.00027397,7]
[384896499,1757621449979,-2324.74,0.00027397,7]
[384896500,1757621449988,-400.0,0.00027397,7]
[384896501,1757621449998,-3956.6,0.00027397,7]
[384896502,1757621450008,-400.0,0.00027397,7]
[384896503,1757621450017,-400.0,0.00027397,7]
[384896504,1757621450027,-400.0,0.00027397,7]
[384896505,1757621450036,-3392.8,0.00027397,7]
[384896506,1757621450046,-2057.25,0.00027397,7]
[384896507,1757621450055,-400.0,0.00027397,7]
[384896508,1757621450065,-400.0,0.00027397,7]
[384896509,1757621450074,-1558.37,0.00027397,7]
[384896510,1757621450085,-400.0,0.00027397,7]
[384896511,1757621450094,-2444.79,0.00027397,7]
[384896512,1757621450104,-3183.81,0.00027397,7]
[384896513,1757621450114,-400.0,0.00027397,7]
[384896514,1757621450124,-2095.76,0.00027397,7]
[384896515,1757621450134,-623.39,0.00027397,7]
[384896516,1757621450144,-581.48,0.00027397,7]
[384896517,1757621450153,-150.0,0.00027397,2]
[384896518,1757621450165,-1874.04,0.00027397,7]
[384896519,1757621450177,-151.0,0.00027397,7]
[384896520,1757621450187,-400.0,0.00027397,7]
[384896521,1757621450198,-254.475143,0.00027397,14]
[384896522,1757621450208,-151.0,0.00027397,7]
[384896523,1757621450218,-400.0,0.00027397,7]
[384896524,1757621450227,-400.0,0.00027397,7]
[384896525,1757621450236,-741.66,0.00027397,7]
[384896526,1757621450246,-400.0,0.00027397,7]
[384896527,1757621450257,-1504.53,0.00027397,7]
[384896528,1757621450268,-488.52673291,0.00027397,7]
[384896529,1757621450278,-1206.08,0.00027397,7]
[384896530,1757621450292,-473.99,0.00027397,7]
[384896531,1757621450302,-151.0,0.00027397,7]
[384896532,1757621450312,-936.46,0.00027397,7]
[384896533,1757621450322,-592.96,0.00027397,7]
[384896534,1757621450333,-513.96,0.00027397,7]
[384896535,1757621450343,-400.0,0.00027397,7]
[384896536,1757621450354,-1819.11,0.00027397,7]
[384896537,1757621450364,-1208.78,0.00027397,7]
[384896538,1757621450375,-400.0,0.00027397,7]
[384896539,1757621450386,-2093.05,0.00027397,7]
[384896540,1757621450396,-1928.38,0.00027397,7]
[384896541,1757621450405,-1138.12,0.00027397,7]
[384896542,1757621450414,-400.0,0.00027397,7]
[384896543,1757621450423,-400.0,0.00027397,7]
[384896544,1757621450435,-409.53,0.00027397,7]
[384896545,1757621450445,-1291.81,0.00027397,7]
[384896546,1757621450455,-3017.59,0.00027397,7]
[384896547,1757621450466,-2512.78,0.00027397,7]
[384896548,1757621450476,-1695.0,0.00027397,7]
[384896549,1757621450488,-861.69,0.00027397,7]
[384896550,1757621450497,-2202.25,0.00027397,7]
[384896551,1757621450508,-725.87,0.00027397,7]
[384896552,1757621450519,-400.0,0.00027397,7]
[384896553,1757621450530,-400.55,0.00027397,7]
[384896554,1757621450540,-400.0,0.00027397,7]
[384896555,1757621450550,-1502.19,0.00027397,7]
[384896556,1757621450559,-400.0,0.00027397,7]
[384896557,1757621450569,-400.0,0.00027397,7]
[384896558,1757621450580,-2923.21,0.00027397,7]
[384896559,1757621450589,-1189.28,0.00027397,7]
[384896560,1757621450599,-400.0,0.00027397,7]
[384896561,1757621450608,-400.0,0.00027397,7]
[384896562,1757621450617,-1620.78,0.00027397,7]
[384896563,1757621450627,-400.0,0.00027397,7]
[384896564,1757621450636,-2282.01,0.00027397,7]
[384896565,1757621450647,-155.152294,0.00027397,7]
[384896566,1757621450656,-151.0,0.00027397,7]
[384896567,1757621450667,-151.0,0.00027397,7]
[384896568,1757621450677,-151.0,0.00027397,7]
[384896569,1757621450686,-151.0,0.00027397,7]
[384896570,1757621450695,-1631.9,0.00027397,7]
[384896571,1757621450705,-2030.71,0.00027397,7]
[384896572,1757621450715,-151.0,0.00027397,7]
[384896573,1757621450724,-470.1636764,0.00027397,7]
[384896574,1757621450734,-469.17181456,0.00027397,7]
[384896575,1757621450744,-3075.74,0.00027397,7]
[384896576,1757621450753,-400.0,0.00027397,7]
[384896577,1757621450763,-264.104476,0.00027397,7]
[384896578,1757621450772,-151.0,0.00027397,7]
[384896579,1757621450784,-151.0,0.00027397,7]
[384896580,1757621450795,-510.4065437,0.00027397,7]
[384896581,1757621450806,-978.15,0.00027397,7]
[384896582,1757621450818,-400.0,0.00027397,7]
[384896583,1757621450828,-151.0,0.00027397,7]
[384896584,1757621450838,-400.0,0.00027397,7]
[384896585,1757621450847,-894.62,0.00027397,7]
[384896586,1757621450857,-151.0,0.00027397,7]
[384896587,1757621450867,-280.945938,0.00027397,7]
[384896588,1757621450876,-500.0,0.00027397,2]
[384896589,1757621450886,-690.49,0.00027397,7]
[384896590,1757621450895,-896.05,0.00027397,7]
[384896591,1757621450905,-1696.36,0.00027397,7]
[384896592,1757621450915,-1607.02,0.00027397,7]
[384896593,1757621450926,-151.0,0.00027397,7]
[384896594,1757621450935,-151.0,0.00027397,7]
[384896595,1757621450946,-151.0,0.00027397,7]
[384896596,1757621450955,-2311.09,0.00027397,7]
[384896597,1757621450965,-1521.29,0.00027397,7]
[384896598,1757621450974,-2439.39168688,0.00027397,7]
[384896599,1757621451867,-49.93831312,0.00027397,7]
[384896600,1757621451878,-1684.85,0.00027397,7]
[384896601,1757621451888,-400.0,0.00027397,7]
[384896602,1757621451898,-1292.02,0.00027397,7]
[384896603,1757621451909,-400.0,0.00027397,7]
[384896604,1757621451918,-1574.22,0.00027397,7]
[384896605,1757621451930,-400.0,0.00027397,7]
[384896606,1757621451939,-678.72,0.00027397,7]
[384896607,1757621451950,-503.83,0.00027397,7]
[384896608,1757621451959,-2070.35,0.00027397,7]
[384896609,1757621451969,-400.0,0.00027397,7]
[384896610,1757621451979,-3591.39,0.00027397,7]
[384896611,1757621451990,-1505.1,0.00027397,7]
[384896612,1757621451999,-412.22,0.00027397,7]
[384896613,1757621452010,-400.0,0.00027397,7]
[384896614,1757621452021,-597.68,0.00027397,7]
[384896615,1757621452031,-1719.51,0.00027397,7]
[384896616,1757621452042,-779.9,0.00027397,7]
[384896617,1757621452052,-1298.92,0.00027397,7]
[384896618,1757621452062,-2513.09,0.00027397,7]
[384896619,1757621452072,-500.0,0.00027397,7]
[384896620,1757621452081,-2099.82,0.00027397,7]
[384896621,1757621452090,-500.0,0.00027397,7]
[384896622,1757621452101,-3276.43,0.00027397,7]
[384896623,1757621452112,-500.0,0.00027397,7]
[384896624,1757621452121,-500.0,0.00027397,7]
[384896625,1757621452131,-400.0,0.00027397,7]
[384896626,1757621452140,-400.0,0.00027397,7]
[384896627,1757621452150,-6422.61,0.00027397,7]
[384896628,1757621452159,-400.0,0.00027397,7]
[384896629,1757621452168,-1840.96,0.00027397,7]
[384896630,1757621452177,-779.9,0.00027397,7]
[384896631,1757621452186,-531.02,0.00027397,7]
[384896632,1757621452195,-410.65233696,0.00027397,7]
[384896633,1757621452204,-1897.26019944,0.00027397,7]
[384896642,1757621452964,-275.88980056,0.00027397,7]
[384896643,1757621452973,-400.0,0.00027397,7]
[384896644,1757621452983,-425.49,0.00027397,7]
[384896645,1757621452992,-400.0,0.00027397,7]
[384896646,1757621453002,-744.2,0.00027397,7]
[384896647,1757621453011,-551.21,0.00027397,7]
[384896648,1757621453021,-400.0,0.00027397,7]
[384896649,1757621453030,-2534.62337872,0.00027397,7]
[384896650,1757621453042,-479.0103176,0.00027397,7]
[384896651,1757621453062,-376.92078997,0.00027397,7]
[384896652,1757621453073,-252.45551371,0.00027397,7]
[384896653,1757621453082,-383.26147829,0.00027397,7]
[384896654,1757621453093,-616.15,0.00027397,7]
[384896655,1757621453108,-2907.37852171,0.00027397,7]
[384896656,1757621453117,-1092.15,0.00027397,7]
[384896657,1757621453126,-400.0,0.00027397,7]
[384896658,1757621453136,-400.0,0.00027397,7]
[384896659,1757621453144,-1392.92,0.00027397,7]
[384896660,1757621453154,-1598.51,0.00027397,7]
[384896661,1757621453163,-1931.78,0.00027397,7]
[384896662,1757621453171,-592.5,0.00027397,7]
[384896663,1757621453180,-1095.44,0.00027397,7]
[384896664,1757621453190,-1459.95,0.00027397,7]
[384896665,1757621453199,-151.0,0.00027397,7]
[384896666,1757621453207,-151.0,0.00027397,7]
[384896667,1757621453217,-400.0,0.00027397,7]
[384896668,1757621453226,-400.0,0.00027397,7]
[384896669,1757621453235,-2470.35,0.00027397,7]
[384896670,1757621453245,-400.0,0.00027397,7]
[384896671,1757621453254,-779.12,0.00027397,7]
[384896672,1757621453263,-153.387197,0.00027397,7]
[384896673,1757621453272,-2288.93,0.00027397,7]
[384896674,1757621453285,-2088.48,0.00027397,7]
[384896675,1757621453294,-151.0,0.00027397,7]
[384896676,1757621453303,-151.0,0.00027397,7]
[384896677,1757621453312,-151.0,0.00027397,7]
[384896678,1757621453323,-1561.5,0.00027397,7]
[384896679,1757621453332,-151.0,0.00027397,7]
[384896680,1757621453341,-172.719343,0.00027397,7]
[384896681,1757621453350,-172.719343,0.00027397,7]
[384896682,1757621453360,-1757.46,0.00027397,7]
[384896683,1757621453370,-151.0,0.00027397,7]
[384896684,1757621453379,-151.0,0.00027397,7]
[384896685,1757621453389,-1338.01,0.00027397,7]
[384896686,1757621453398,-172.719343,0.00027397,7]
[384896687,1757621453407,-172.719343,0.00027397,7]
[384896688,1757621453416,-400.0,0.00027397,7]
[384896689,1757621453426,-400.0,0.00027397,7]
[384896690,1757621453435,-172.719343,0.00027397,7]
[384896691,1757621453444,-172.719343,0.00027397,7]
[384896692,1757621453453,-400.0,0.00027397,7]
[384896693,1757621453462,-1766.49731403,0.00027397,7]
[384896694,1757621453477,-106.32268597,0.00027397,7]
[384896695,1757621453486,-1038.65,0.00027397,7]
[384896696,1757621453499,-172.719343,0.00027397,7]
[384896697,1757621453508,-172.719343,0.00027397,7]
[384896698,1757621453517,-400.0,0.00027397,7]
[384896699,1757621453526,-1760.24,0.00027397,7]
[384896700,1757621453534,-1204.89,0.00027397,7]
[384896701,1757621453543,-1718.01,0.00027397,7]
[384896702,1757621453552,-400.0,0.00027397,7]
[384896703,1757621453561,-575.62,0.00027397,7]
[384896704,1757621453570,-2403.53,0.00027397,7]
[384896705,1757621453579,-1881.82,0.00027397,7]
[384896706,1757621453588,-2510.54,0.00027397,7]
[384896707,1757621453597,-2101.38,0.00027397,7]
[384896708,1757621453606,-2261.88,0.00027397,7]
[384896709,1757621453615,-490.71,0.00027397,7]
[384896710,1757621453627,-151.0,0.00027397,7]
[384896711,1757621453635,-151.0,0.00027397,7]
[384896712,1757621453644,-400.0,0.00027397,7]
[384896713,1757621453653,-732.09,0.00027397,7]
[384896714,1757621453662,-995.62,0.00027397,7]